[Event "Queens Festival Europe 2022"]
[Site "Tornelo"]
[Date "2022.06.19"]
[Round "8.7"]
[White "Kanyamarala, Trisha"]
[Black "Maksimovic, Suzana"]
[Result "1/2-1/2"]
[ECO "E90"]
[WhiteElo "2127"]
[BlackElo "2145"]
[Annotator "NA RC"]
[PlyCount "115"]
[EventDate "2022.06.19"]
[EventType "swiss"]
[EventCountry "NET"]
[SourceTitle "playchess.com"]
[Source "ChessBase"]
[SourceQuality "1"]
[TimeControl "180+2"]

1. d4 {[%emt 0:00:02]} Nf6 {[%emt 0:00:06]} 2. c4 {[%emt 0:00:02]} c5 {[%emt 0:00:02]} 3. d5 {[%emt 0:00:03]} g6 {[%emt 0:00:02]} 4. Nc3 {[%emt 0:00:02]} Bg7 {[%emt 0:00:01]} 5. e4 {[%emt 0:00:02]} d6 {[%emt 0:00:01]} 6. h3 {[%emt 0:00:03]} O-O {[%emt 0:00:02]} 7. Nf3 {[%emt 0:00:02]} a6 {[%emt 0:00:05]} 8. a4 {[%emt 0:00:02]} Nbd7 {[%emt 0:00:06]} 9. Be2 {[%emt 0:00:03]} Qc7 {[%emt 0:00:05]} 10. O-O {[%emt 0:00:04]} e5 {[%emt 0:00:04]} 11. dxe6 {[%emt 0:00:12]} fxe6 {[%emt 0:00:02]} 12. Be3 {[%emt 0:00:12]} b6 {[%emt 0:00:24]} 13. Qd3 {[%emt 0:00:11]} Bb7 {[%emt 0:00:06]} 14. Rfd1 {[%emt 0:00:03]} Ne8 {[%emt 0:00:08]} 15. Bg5 {[%emt 0:00:11]} Ne5 {[%emt 0:00:07]} 16. Nxe5 {[%emt 0:00:04]} Bxe5 {[%emt 0:00:11]} 17. Bg4 {[%emt 0:00:03]} Ng7 {[%emt 0:00:06]} 18. Bh6 {[%emt 0:00:11]} Rae8 {[%emt 0:00:04]} 19. Rab1 {[%emt 0:00:08]} Rf7 {[%emt 0:00:12]} 20. Ne2 {[%emt 0:00:08]} Nh5 {[%emt 0:00:14]} 21. Bxh5 {[%emt 0:00:20]} gxh5 {[%emt 0:00:02]} 22. f4 {[%emt 0:00:08]} Bg7 {[%emt 0:00:08]} 23. Bg5 {[%emt 0:00:10]} Rd7 {[%emt 0:00:09]} 24. Ng3 {[%emt 0:00:10]} Bd4+ {[%emt 0:00:20]} 25. Kh1 {[%emt 0:00:05]} Rg7 {[%emt 0:00:07]} 26. Nxh5 {[%emt 0:00:04]} Rg6 {[%emt 0:00:04]} 27. Qe2 {[%emt 0:00:11]} Qf7 {[%emt 0:00:03]} 28. b4 {[%emt 0:00:20]} h6 {[%emt 0:00:06]} 29. Bh4 {[%emt 0:00:02]} Bc6 {[%emt 0:00:07]} 30. bxc5 {[%emt 0:00:07]} bxc5 {[%emt 0:00:03]} 31. Rb6 {[%emt 0:00:03]} Rc8 {[%emt 0:00:11]} 32. Rxa6 {[%emt 0:00:03]} Kh8 {[%emt 0:00:04]} 33. a5 {[%emt 0:00:14]} Rcg8 {[%emt 0:00:05]} 34. Bg3 {[%emt 0:00:19]} Qb7 {[%emt 0:00:02]} 35. Rb6 {[%emt 0:00:02]} Qa8 {[%emt 0:00:02]} 36. Qe1 {[%emt 0:00:06]} Bxe4 {[%emt 0:00:03]} 37. Rxd4 {[%emt 0:00:02]} cxd4 {[%emt 0:00:01]} 38. Rxd6 {[%emt 0:00:01]} e5 {[%emt 0:00:10]} 39. Rxg6 {[%emt 0:00:02]} Rxg6 {[%emt 0:00:05]} 40. Kh2 {[%emt 0:00:02]} exf4 {[%emt 0:00:05]} 41. Nxf4 {[%emt 0:00:03]} Ra6 {[%emt 0:00:08]} 42. Nh5 {[%emt 0:00:02]} Kh7 {[%emt 0:00:02]} 43. Nf4 {[%emt 0:00:01]} Qc6 {[%emt 0:00:02]} 44. Qd1 {[%emt 0:00:02]} Qxc4 {[%emt 0:00:03]} 45. Qg4 {[%emt 0:00:01]} Ra7 {[%emt 0:00:03]} 46. Qh4 {[%emt 0:00:02]} Rf7 {[%emt 0:00:02]} 47. Nh5 {[%emt 0:00:02]} Qe2 {[%emt 0:00:04]} 48. Nf6+ {[%emt 0:00:01]} Rxf6 {[%emt 0:00:03]} 49. Bf2 {[%emt 0:00:05]} Rxf2 {[%emt 0:00:03]} 50. Qe7+ {[%emt 0:00:02]} Kg6 {[%emt 0:00:01]} 51. Qd6+ {[%emt 0:00:01]} Rf6 {[%emt 0:00:02]} 52. Qg3+ {[%emt 0:00:02]} Kh7 {[%emt 0:00:01]} 53. Qc7+ {[%emt 0:00:01]} Kg6 {[%emt 0:00:02]} 54. Qg3+ {[%emt 0:00:02]} Kf7 {[%emt 0:00:01]} 55. Qc7+ {[%emt 0:00:01]} Kg8 {[%emt 0:00:01]} 56. Qb8+ {[%emt 0:00:02]} Kh7 {[%emt 0:00:02]} 57. Qc7+ {[%emt 0:00:01]} Kg6 {[%emt 0:00:01]} 58. Qg3+ {[%emt 0:00:02]} 1/2-1/2

[Event "Queens Festival Europe 2022"]
[Site "Tornelo"]
[Date "2022.06.19"]
[Round "8.7"]
[White "Arora, Tashika"]
[Black "Cassi, Elisa"]
[Result "0-1"]
[ECO "E01"]
[WhiteElo "1822"]
[BlackElo "1999"]
[Annotator "NA RC"]
[PlyCount "72"]
[EventDate "2022.06.19"]
[EventType "swiss"]
[EventCountry "NET"]
[SourceTitle "playchess.com"]
[Source "ChessBase"]
[SourceQuality "1"]
[TimeControl "180+2"]

1. d4 {[%emt 0:00:02]} d5 {[%emt 0:00:06]} 2. Nf3 {[%emt 0:00:03]} Nf6 {[%emt 0:00:02]} 3. c4 {[%emt 0:00:01]} e6 {[%emt 0:00:02]} 4. g3 {[%emt 0:00:02]} Bb4+ {[%emt 0:00:03]} 5. Bd2 {[%emt 0:00:02]} Bd6 {[%emt 0:00:02]} 6. Bg2 {[%emt 0:00:02]} c6 {[%emt 0:00:02]} 7. O-O {[%emt 0:00:04]} O-O {[%emt 0:00:04]} 8. Qc2 {[%emt 0:00:02]} Nbd7 {[%emt 0:00:09]} 9. cxd5 {[%emt 0:00:14]} exd5 {[%emt 0:00:03]} 10. Nc3 {[%emt 0:00:03]} Re8 {[%emt 0:00:06]} 11. Rfe1 {[%emt 0:00:05]} Nf8 {[%emt 0:00:07]} 12. Bg5 {[%emt 0:00:07]} h6 {[%emt 0:00:05]} 13. Bxf6 {[%emt 0:00:09]} Qxf6 {[%emt 0:00:02]} 14. e4 {[%emt 0:00:01]} dxe4 {[%emt 0:00:15]} 15. Nxe4 {[%emt 0:00:07]} Qg6 {[%emt 0:00:10]} 16. Nh4 {[%emt 0:00:03]} Qh7 {[%emt 0:00:02]} 17. Qb3 {[%emt 0:00:05]} Bc7 {[%emt 0:00:06]} 18. Nf6+ {[%emt 0:00:08]} gxf6 {[%emt 0:00:02]} 19. Rxe8 {[%emt 0:00:03]} Be6 {[%emt 0:00:09]} 20. Rxe6 {[%emt 0:00:07]} Nxe6 {[%emt 0:00:22]} 21. Qxb7 {[%emt 0:00:08]} Rb8 {[%emt 0:00:05]} 22. Qxc6 {[%emt 0:00:04]} Rxb2 {[%emt 0:00:05]} 23. Be4 {[%emt 0:00:17]} Qg7 {[%emt 0:00:16]} 24. Nf5 {[%emt 0:00:08]} Qg5 {[%emt 0:00:05]} 25. Qc3 {[%emt 0:00:37]} Re2 {[%emt 0:00:17]} 26. h4 {[%emt 0:00:12]} Qd2 {[%emt 0:00:55]} 27. Qxd2 {[%emt 0:00:07]} Rxd2 {[%emt 0:00:01]} 28. Rc1 {[%emt 0:00:08]} Bb6 {[%emt 0:00:03]} 29. Rc8+ {[%emt 0:00:12]} Nd8 {[%emt 0:00:03]} 30. Nxh6+ {[%emt 0:00:07]} Kf8 {[%emt 0:00:01]} 31. Nf5 {[%emt 0:00:04]} Ke8 {[%emt 0:00:03]} 32. Bc6+ {[%emt 0:00:14]} Kf8 {[%emt 0:00:02]} 33. h5 {[%emt 0:00:06]} Rc2 {[%emt 0:00:05]} 34. Bd7 {[%emt 0:00:06]} Rxc8 {[%emt 0:00:04]} 35. Bxc8 {[%emt 0:00:02]} Kg8 {[%emt 0:00:01]} 36. h6 {[%emt 0:00:04]} Kh7 {[%emt 0:00:01]} 0-1

[Event "Queens Festival Europe 2022"]
[Site "Tornelo"]
[Date "2022.06.19"]
[Round "8.7"]
[White "Frundina, Yelyzaveta"]
[Black "Thornton, Filipina"]
[Result "0-1"]
[ECO "D93"]
[WhiteElo "1624"]
[BlackElo "1660"]
[Annotator "NA RC"]
[PlyCount "88"]
[EventDate "2022.06.19"]
[EventType "swiss"]
[EventCountry "NET"]
[SourceTitle "playchess.com"]
[Source "ChessBase"]
[SourceQuality "1"]
[TimeControl "180+2"]

1. Nf3 {[%emt 0:00:02]} Nf6 {[%emt 0:00:08]} 2. d4 {[%emt 0:00:08]} g6 {[%emt 0:00:03]} 3. c4 {[%emt 0:00:03]} Bg7 {[%emt 0:00:02]} 4. Nc3 {[%emt 0:00:05]} d5 {[%emt 0:00:02]} 5. Bf4 {[%emt 0:00:18]} c6 {[%emt 0:00:10]} 6. e3 {[%emt 0:00:03]} O-O {[%emt 0:00:02]} 7. cxd5 {[%emt 0:00:06]} Nxd5 {[%emt 0:00:04]} 8. Nxd5 {[%emt 0:00:11]} cxd5 {[%emt 0:00:03]} 9. Be2 {[%emt 0:00:12]} Nc6 {[%emt 0:00:02]} 10. O-O {[%emt 0:00:07]} Re8 {[%emt 0:00:01]} 11. a3 {[%emt 0:00:07]} f6 {[%emt 0:00:08]} 12. Bg3 {[%emt 0:00:09]} e5 {[%emt 0:00:02]} 13. Rc1 {[%emt 0:00:26]} exd4 {[%emt 0:00:08]} 14. Nxd4 {[%emt 0:00:02]} Nxd4 {[%emt 0:00:03]} 15. Qxd4 {[%emt 0:00:07]} f5 {[%emt 0:00:02]} 16. Qc5 {[%emt 0:00:15]} Qf6 {[%emt 0:00:12]} 17. Qxd5+ {[%emt 0:00:16]} Be6 {[%emt 0:00:04]} 18. Qxb7 {[%emt 0:00:08]} g5 {[%emt 0:00:10]} 19. h3 {[%emt 0:00:28]} f4 {[%emt 0:00:02]} 20. exf4 {[%emt 0:00:04]} gxf4 {[%emt 0:00:03]} 21. Bh2 {[%emt 0:00:02]} Qg5 {[%emt 0:00:07]} 22. Bf3 {[%emt 0:00:12]} Reb8 {[%emt 0:00:07]} 23. Qc7 {[%emt 0:00:10]} Rc8 {[%emt 0:00:08]} 24. Qd6 {[%emt 0:00:03]} Bxh3 {[%emt 0:00:16]} 25. Bxa8 {[%emt 0:00:04]} Rxa8 {[%emt 0:00:04]} 26. g3 {[%emt 0:00:03]} fxg3 {[%emt 0:00:10]} 27. Qd5+ {[%emt 0:00:02]} Kf8 {[%emt 0:00:12]} 28. Qxg5 {[%emt 0:00:02]} Re8 {[%emt 0:00:13]} 29. Bxg3 {[%emt 0:00:02]} Re6 {[%emt 0:00:06]} 30. Rfe1 {[%emt 0:00:01]} Rg6 {[%emt 0:00:02]} 31. Qd5 {[%emt 0:00:03]} Bf6 {[%emt 0:00:23]} 32. Qd6+ {[%emt 0:00:02]} Kg7 {[%emt 0:00:07]} 33. Qd7+ {[%emt 0:00:02]} Kh6 {[%emt 0:00:02]} 34. Re2 {[%emt 0:00:02]} Bh4 {[%emt 0:00:05]} 35. Rcc2 {[%emt 0:00:01]} Bxg3 {[%emt 0:00:04]} 36. fxg3 {[%emt 0:00:02]} Bxd7 {[%emt 0:00:02]} 37. Kh2 {[%emt 0:00:03]} Bb5 {[%emt 0:00:06]} 38. Re4 {[%emt 0:00:02]} Bd3 {[%emt 0:00:05]} 39. Rh4+ {[%emt 0:00:02]} Kg7 {[%emt 0:00:02]} 40. Rc7+ {[%emt 0:00:02]} Kf6 {[%emt 0:00:04]} 41. Rhxh7 {[%emt 0:00:03]} a6 {[%emt 0:00:12]} 42. Rhf7+ {[%emt 0:00:02]} Ke5 {[%emt 0:00:03]} 43. Rfe7+ {[%emt 0:00:02]} Kf5 {[%emt 0:00:06]} 44. Rcd7 {[%emt 0:00:02]} Kf6 {[%emt 0:00:06]} 0-1

[Event "Queens Festival Europe 2022"]
[Site "Tornelo"]
[Date "2022.06.19"]
[Round "8.7"]
[White "Ostafiev, Cristina"]
[Black "Caku, Kler"]
[Result "1-0"]
[ECO "C28"]
[WhiteElo "1173"]
[BlackElo "1542"]
[Annotator "NA RC"]
[PlyCount "55"]
[EventDate "2022.06.19"]
[EventType "swiss"]
[EventCountry "NET"]
[SourceTitle "playchess.com"]
[Source "ChessBase"]
[SourceQuality "1"]
[TimeControl "180+2"]

1. e4 {[%emt 0:00:02]} e5 {[%emt 0:00:04]} 2. Nc3 {[%emt 0:00:11]} Nc6 {[%emt 0:00:01]} 3. Bc4 {[%emt 0:00:03]} Nf6 {[%emt 0:00:05]} 4. d3 {[%emt 0:00:03]} Be7 {[%emt 0:00:02]} 5. h3 {[%emt 0:00:06]} d6 {[%emt 0:00:02]} 6. Be3 {[%emt 0:00:07]} O-O {[%emt 0:00:04]} 7. g4 {[%emt 0:00:18]} Be6 {[%emt 0:00:18]} 8. g5 {[%emt 0:00:25]} Nd7 {[%emt 0:00:07]} 9. g6 {[%emt 0:00:06]} hxg6 {[%emt 0:00:06]} 10. h4 {[%emt 0:00:05]} Bxc4 {[%emt 0:00:07]} 11. dxc4 {[%emt 0:00:04]} Bxh4 {[%emt 0:00:25]} 12. Nf3 {[%emt 0:00:12]} Be7 {[%emt 0:00:05]} 13. Qe2 {[%emt 0:00:10]} Nf6 {[%emt 0:00:15]} 14. Qf1 {[%emt 0:00:05]} Nh5 {[%emt 0:00:06]} 15. Nd5 {[%emt 0:00:09]} Qd7 {[%emt 0:00:14]} 16. Nxe7+ {[%emt 0:00:09]} Qxe7 {[%emt 0:00:02]} 17. Bg5 {[%emt 0:00:05]} Qe6 {[%emt 0:00:04]} 18. O-O-O {[%emt 0:00:25]} a6 {[%emt 0:00:21]} 19. Qg2 {[%emt 0:00:10]} b5 {[%emt 0:00:15]} 20. Rh2 {[%emt 0:00:08]} bxc4 {[%emt 0:00:07]} 21. Rdh1 {[%emt 0:00:05]} Nd4 {[%emt 0:00:12]} 22. Be3 {[%emt 0:00:23]} c5 {[%emt 0:00:11]} 23. Ng5 {[%emt 0:00:03]} Qd7 {[%emt 0:00:17]} 24. Rxh5 {[%emt 0:00:07]} gxh5 {[%emt 0:00:02]} 25. Rxh5 {[%emt 0:00:02]} f6 {[%emt 0:00:03]} 26. Rh8+ {[%emt 0:00:03]} Kxh8 {[%emt 0:00:05]} 27. Qh2+ {[%emt 0:00:02]} Kg8 {[%emt 0:00:05]} 28. Qh7# {[%emt 0:00:02]} 1-0

[Event "Queens Festival Europe 2022"]
[Site "Tornelo"]
[Date "2022.06.19"]
[Round "8.8"]
[White "Steffensen, Elena"]
[Black "Smith, Olivia"]
[Result "1-0"]
[ECO "C43"]
[WhiteElo "2044"]
[BlackElo "2039"]
[Annotator "NA RC"]
[PlyCount "69"]
[EventDate "2022.06.19"]
[EventType "swiss"]
[EventCountry "NET"]
[SourceTitle "playchess.com"]
[Source "ChessBase"]
[SourceQuality "1"]
[TimeControl "180+2"]

1. e4 {[%emt 0:00:02]} e5 {[%emt 0:00:11]} 2. Nf3 {[%emt 0:00:03]} Nf6 {[%emt 0:00:01]} 3. d4 {[%emt 0:00:08]} Nxe4 {[%emt 0:00:03]} 4. Qe2 {[%emt 0:00:10]} d5 {[%emt 0:00:02]} 5. Nxe5 {[%emt 0:00:05]} Be7 {[%emt 0:00:12]} 6. Nc3 {[%emt 0:00:31]} Nxc3 {[%emt 0:00:24]} 7. bxc3 {[%emt 0:00:02]} O-O {[%emt 0:00:03]} 8. Be3 {[%emt 0:00:04]} c5 {[%emt 0:00:10]} 9. Qd2 {[%emt 0:00:07]} Nc6 {[%emt 0:00:05]} 10. Nxc6 {[%emt 0:00:06]} bxc6 {[%emt 0:00:00]} 11. Be2 {[%emt 0:00:02]} Bd6 {[%emt 0:00:43]} 12. dxc5 {[%emt 0:00:07]} Bc7 {[%emt 0:00:03]} 13. O-O {[%emt 0:00:04]} Qh4 {[%emt 0:00:03]} 14. g3 {[%emt 0:00:03]} Qf6 {[%emt 0:00:17]} 15. Bg5 {[%emt 0:00:04]} Qg6 {[%emt 0:00:01]} 16. Bd3 {[%emt 0:00:03]} Qh5 {[%emt 0:00:04]} 17. Be2 {[%emt 0:00:02]} Qh3 {[%emt 0:00:03]} 18. Bf4 {[%emt 0:00:02]} Bd8 {[%emt 0:00:06]} 19. Bf3 {[%emt 0:00:06]} Bf6 {[%emt 0:00:07]} 20. Bg2 {[%emt 0:00:03]} Qh5 {[%emt 0:00:03]} 21. Rab1 {[%emt 0:00:03]} Bf5 {[%emt 0:00:04]} 22. c4 {[%emt 0:00:02]} Qg6 {[%emt 0:00:07]} 23. cxd5 {[%emt 0:00:03]} Bxc2 {[%emt 0:00:05]} 24. Rbc1 {[%emt 0:00:05]} Bd3 {[%emt 0:00:03]} 25. Rfd1 {[%emt 0:00:04]} Bf5 {[%emt 0:00:27]} 26. d6 {[%emt 0:00:04]} Bd7 {[%emt 0:00:03]} 27. Qd3 {[%emt 0:00:09]} Qh5 {[%emt 0:00:12]} 28. Qf3 {[%emt 0:00:05]} Qg6 {[%emt 0:00:09]} 29. Rb1 {[%emt 0:00:05]} Rab8 {[%emt 0:00:03]} 30. Rxb8 {[%emt 0:00:05]} Rxb8 {[%emt 0:00:00]} 31. Qe4 {[%emt 0:00:03]} Bf5 {[%emt 0:00:03]} 32. Qxc6 {[%emt 0:00:04]} Bg4 {[%emt 0:00:03]} 33. Re1 {[%emt 0:00:04]} Bc3 {[%emt 0:00:03]} 34. Re8+ {[%emt 0:00:02]} Rxe8 {[%emt 0:00:01]} 35. Qxe8# {[%emt 0:00:02]} 1-0

[Event "Queens Festival Europe 2022"]
[Site "Tornelo"]
[Date "2022.06.19"]
[Round "8.8"]
[White "Can, Isil"]
[Black "Stewart-Bermann, Tanya"]
[Result "1-0"]
[ECO "B73"]
[WhiteElo "1901"]
[BlackElo "1863"]
[Annotator "NA RC"]
[PlyCount "61"]
[EventDate "2022.06.19"]
[EventType "swiss"]
[EventCountry "NET"]
[SourceTitle "playchess.com"]
[Source "ChessBase"]
[SourceQuality "1"]
[TimeControl "180+2"]

1. e4 {[%emt 0:00:02]} c5 {[%emt 0:00:04]} 2. Nf3 {[%emt 0:00:02]} d6 {[%emt 0:00:01]} 3. d4 {[%emt 0:00:01]} cxd4 {[%emt 0:00:01]} 4. Nxd4 {[%emt 0:00:01]} Nf6 {[%emt 0:00:02]} 5. Nc3 {[%emt 0:00:02]} g6 {[%emt 0:00:01]} 6. Be3 {[%emt 0:00:05]} Bg7 {[%emt 0:00:02]} 7. Be2 {[%emt 0:00:07]} Nc6 {[%emt 0:00:03]} 8. O-O {[%emt 0:00:07]} Bd7 {[%emt 0:00:02]} 9. Qd2 {[%emt 0:00:21]} O-O {[%emt 0:00:04]} 10. h3 {[%emt 0:00:08]} a6 {[%emt 0:00:02]} 11. a4 {[%emt 0:00:03]} Rc8 {[%emt 0:00:02]} 12. a5 {[%emt 0:00:03]} Ne5 {[%emt 0:00:05]} 13. f4 {[%emt 0:00:43]} Nc4 {[%emt 0:00:01]} 14. Bxc4 {[%emt 0:00:02]} Rxc4 {[%emt 0:00:02]} 15. e5 {[%emt 0:00:11]} dxe5 {[%emt 0:00:10]} 16. fxe5 {[%emt 0:00:01]} Nh5 {[%emt 0:00:02]} 17. Nf3 {[%emt 0:00:03]} Bc6 {[%emt 0:00:09]} 18. Qe2 {[%emt 0:00:09]} Ng3 {[%emt 0:00:05]} 19. Qxc4 {[%emt 0:00:02]} Nxf1 {[%emt 0:00:13]} 20. Rxf1 {[%emt 0:00:02]} Qxa5 {[%emt 0:00:08]} 21. Bd4 {[%emt 0:00:18]} e6 {[%emt 0:00:21]} 22. b4 {[%emt 0:00:32]} Qd8 {[%emt 0:00:12]} 23. Bc5 {[%emt 0:00:07]} Re8 {[%emt 0:00:07]} 24. Qf4 {[%emt 0:00:08]} Qc7 {[%emt 0:00:17]} 25. Bd6 {[%emt 0:00:09]} Qd7 {[%emt 0:00:13]} 26. Ng5 {[%emt 0:00:05]} f5 {[%emt 0:00:22]} 27. exf6 {[%emt 0:00:03]} Rf8 {[%emt 0:00:28]} 28. Bxf8 {[%emt 0:00:09]} Bxf8 {[%emt 0:00:03]} 29. f7+ {[%emt 0:00:01]} Kh8 {[%emt 0:00:06]} 30. Qf6+ {[%emt 0:00:02]} Bg7 {[%emt 0:00:02]} 31. f8=R# {[%emt 0:00:02]} 1-0

[Event "Queens Festival Europe 2022"]
[Site "Tornelo"]
[Date "2022.06.19"]
[Round "8.8"]
[White "Andries, Leia"]
[Black "Rahimli, Ulkar"]
[Result "0-1"]
[ECO "B22"]
[WhiteElo "1438"]
[BlackElo "1268"]
[Annotator "NA RC"]
[PlyCount "136"]
[EventDate "2022.06.19"]
[EventType "swiss"]
[EventCountry "NET"]
[SourceTitle "playchess.com"]
[Source "ChessBase"]
[SourceQuality "1"]
[TimeControl "180+2"]

1. e4 {[%emt 0:00:02]} c5 {[%emt 0:00:06]} 2. c3 {[%emt 0:00:02]} d6 {[%emt 0:00:02]} 3. d4 {[%emt 0:00:02]} cxd4 {[%emt 0:00:02]} 4. cxd4 {[%emt 0:00:00]} Nc6 {[%emt 0:00:02]} 5. d5 {[%emt 0:00:02]} Ne5 {[%emt 0:00:03]} 6. f4 {[%emt 0:00:03]} Ng4 {[%emt 0:00:06]} 7. Bb5+ {[%emt 0:00:08]} Bd7 {[%emt 0:00:05]} 8. Bxd7+ {[%emt 0:00:22]} Qxd7 {[%emt 0:00:04]} 9. h3 {[%emt 0:00:02]} N4f6 {[%emt 0:00:03]} 10. Nc3 {[%emt 0:00:10]} e6 {[%emt 0:00:07]} 11. dxe6 {[%emt 0:00:13]} Qxe6 {[%emt 0:00:04]} 12. Nf3 {[%emt 0:00:14]} Be7 {[%emt 0:00:42]} 13. O-O {[%emt 0:00:08]} Nh6 {[%emt 0:00:04]} 14. f5 {[%emt 0:00:46]} Qc4 {[%emt 0:00:19]} 15. Bxh6 {[%emt 0:00:05]} gxh6 {[%emt 0:00:03]} 16. Qd4 {[%emt 0:00:13]} Qc6 {[%emt 0:00:14]} 17. Rac1 {[%emt 0:00:14]} Qb6 {[%emt 0:00:26]} 18. Qxb6 {[%emt 0:00:17]} axb6 {[%emt 0:00:02]} 19. Rfd1 {[%emt 0:00:03]} Nh5 {[%emt 0:00:14]} 20. a3 {[%emt 0:00:10]} Rg8 {[%emt 0:00:09]} 21. Rd2 {[%emt 0:00:04]} Nf4 {[%emt 0:00:11]} 22. Nb5 {[%emt 0:00:15]} Nxh3+ {[%emt 0:00:06]} 23. Kh2 {[%emt 0:00:03]} Ng5 {[%emt 0:00:13]} 24. Nc7+ {[%emt 0:00:02]} Kd7 {[%emt 0:00:04]} 25. Nxa8 {[%emt 0:00:01]} Nxf3+ {[%emt 0:00:02]} 26. gxf3 {[%emt 0:00:01]} Bg5 {[%emt 0:00:02]} 27. f4 {[%emt 0:00:02]} Bxf4+ {[%emt 0:00:02]} 28. Kh3 {[%emt 0:00:01]} Bxd2 {[%emt 0:00:02]} 29. Rd1 {[%emt 0:00:01]} Bf4 {[%emt 0:00:04]} 30. Nxb6+ {[%emt 0:00:02]} Kc6 {[%emt 0:00:02]} 31. Nd5 {[%emt 0:00:01]} Bg5 {[%emt 0:00:05]} 32. Kh2 {[%emt 0:00:02]} Re8 {[%emt 0:00:03]} 33. Rg1 {[%emt 0:00:03]} Rxe4 {[%emt 0:00:02]} 34. Nb4+ {[%emt 0:00:01]} Kc5 {[%emt 0:00:05]} 35. Rc1+ {[%emt 0:00:02]} Kb5 {[%emt 0:00:02]} 36. Rd1 {[%emt 0:00:02]} Bf4+ {[%emt 0:00:03]} 37. Kg2 {[%emt 0:00:01]} Re5 {[%emt 0:00:03]} 38. Rd5+ {[%emt 0:00:02]} Rxd5 {[%emt 0:00:02]} 39. Nxd5 {[%emt 0:00:00]} Kc5 {[%emt 0:00:02]} 40. Nf6 {[%emt 0:00:02]} Be5 {[%emt 0:00:02]} 41. Nxh7 {[%emt 0:00:01]} Bxb2 {[%emt 0:00:02]} 42. a4 {[%emt 0:00:01]} Kb4 {[%emt 0:00:05]} 43. Nf8 {[%emt 0:00:04]} Kxa4 {[%emt 0:00:02]} 44. Nd7 {[%emt 0:00:01]} b5 {[%emt 0:00:02]} 45. Nb6+ {[%emt 0:00:01]} Ka5 {[%emt 0:00:02]} 46. Nd7 {[%emt 0:00:02]} b4 {[%emt 0:00:01]} 47. Nb8 {[%emt 0:00:02]} b3 {[%emt 0:00:02]} 48. Nc6+ {[%emt 0:00:01]} Kb6 {[%emt 0:00:01]} 49. Nd8 {[%emt 0:00:02]} Bf6 {[%emt 0:00:03]} 50. Nxf7 {[%emt 0:00:02]} b2 {[%emt 0:00:01]} 51. Nxh6 {[%emt 0:00:02]} b1=Q {[%emt 0:00:04]} 52. Ng8 {[%emt 0:00:00]} Qc2+ {[%emt 0:00:01]} 53. Kf3 {[%emt 0:00:02]} Qd3+ {[%emt 0:00:02]} 54. Kg4 {[%emt 0:00:02]} Qe4+ {[%emt 0:00:02]} 55. Kh3 {[%emt 0:00:01]} Qxf5+ {[%emt 0:00:01]} 56. Kg2 {[%emt 0:00:01]} d5 {[%emt 0:00:02]} 57. Nh6 {[%emt 0:00:04]} Qg5+ {[%emt 0:00:03]} 58. Kf2 {[%emt 0:00:01]} Qxh6 {[%emt 0:00:02]} 59. Ke2 {[%emt 0:00:01]} d4 {[%emt 0:00:01]} 60. Kd3 {[%emt 0:00:02]} Qe3+ {[%emt 0:00:03]} 61. Kc2 {[%emt 0:00:01]} d3+ {[%emt 0:00:01]} 62. Kb3 {[%emt 0:00:02]} d2+ {[%emt 0:00:02]} 63. Kc4 {[%emt 0:00:01]} d1=R {[%emt 0:00:03]} 64. Kb4 {[%emt 0:00:01]} Qe4+ {[%emt 0:00:04]} 65. Ka3 {[%emt 0:00:01]} Qd3+ {[%emt 0:00:01]} 66. Ka2 {[%emt 0:00:03]} Qc2+ {[%emt 0:00:02]} 67. Ka3 {[%emt 0:00:01]} Qb2+ {[%emt 0:00:02]} 68. Ka4 {[%emt 0:00:02]} Ra1# {[%emt 0:00:02]} 0-1